Cogmind - Beta 17 @@@ ROGUE MODE // 2026.08.23 @ 12:45:47 Player: Fedop Result: Destroyed by G-34 Mercenary with Small Laser Performance ------------- Evolutions (0) 0 Regions Visited (2) 400 Robots Destroyed (3) 15 Value Destroyed (21) 21 Prototype IDs (0) 0 Alien Tech Used (0) 0 Bonus (0) 0 TOTAL SCORE: 436 Bonus ------- None Cogmind --------- Core Integrity 0/250 Matter 264/300 Energy 100/100 System Corruption 4% Temperature Warm (123) Movement Core (50) Location -10/Mines Parts ------- > --- POWER (1) -------- (None) > --- PROPULSION (2) --- (None) > --- UTILITY (2) ------ (None) > --- WEAPON (2) ------- (None) > --- INVENTORY (5) ---- Ion Engine Light Ion Engine Trap Scanner Improved Utility Shielding Peak State ------------ > --- POWER ------------ (None) > --- PROPULSION ------- Light Treads Advanced Treads > --- UTILITY ---------- Small Storage Unit Improved Propulsion Shielding > --- WEAPON ----------- (None) > --- INVENTORY -------- Ion Engine Light Ion Engine Light Treads Trap Scanner Seismic Detector Melee Analysis Suite Improved Utility Shielding [Rating: 9] Favorites ----------- Power Light Ion Engine Engine Light Ion Engine Propulsion Light Treads Treads Light Treads Utility Seismic Detector Device Seismic Detector Storage Small Storage Unit Protection Improved Propulsion Shielding Weapon None Build | -11 -10 -10 ------- Run | Yrd Mat Min Slots Evolved . | . . . Power . | . . . Propulsion . | . . . Utility . | . . . Weapon . | . . . Parts Attached 9 | 5 . 4 Power 1 | 1 . . Engine 1 | 1 . . Core . | . . . Reactor . | . . . Propulsion 3 | 2 . 1 Treads 3 | 2 . 1 Leg . | . . . Wheel . | . . . Hover . | . . . Flight . | . . . Utility 5 | 2 . 3 Device 3 | 1 . 2 Storage 1 | 1 . . Processor . | . . . Hackware . | . . . Protection 1 | . . 1 Artifact . | . . . Weapon . | . . . Energy Gun . | . . . Energy Cannon . | . . . Ballistic Gun . | . . . Ballistic Cannon . | . . . Launcher . | . . . Special Weapon . | . . . Impact Weapon . | . . . Slashing Weapon . | . . . Piercing Weapon . | . . . Special Melee Weapon . | . . . Unidentified Prototypes . | . . . Parts Lost 1 | . . 1 Power . | . . . Propulsion . | . . . Utility 1 | . . 1 Weapon . | . . . Highest Loss Streak 1 | . . 1 To Critical Strikes . | . . . Average Backups 5 | . 1 7 Power 1 | . 1 2 Propulsion . | . . . Utility 2 | . . 4 Weapon . | . . . Tool/Special . | . . . Unused Backups 3 | . . 3 Power 1 | . . 1 Propulsion . | . . . Utility 2 | . . 2 Weapon . | . . . Tool/Special . | . . . Average Slot Usage (%) 56 | . 56 55 Engine 2 | . 7 . Treads 27 | . 27 28 Device 13 | . 13 13 Storage 11 | . 7 12 Peak Build Rating 9 | 5 5 9 Average Rating 5 | 3 4 5 On Entrance 2 | . 5 3 Avg Prop Armor Cover (%) 38 | . 39 38 Naked Turns 2 | . 1 1 Heaviest Build 9 | 9 9 7 Greatest Support 40 | 40 40 22 Greatest Overweight (x) 1 | . . 1 Average Overweight (x) . | . . . Largest Inventory Capacity 8 | 8 8 8 Average Capacity 7 | 7 6 7 Most Carried 8 | 1 5 8 Average Carried 5 | . 1 7 Final Capacity 8 | 8 5 5 Final Carried 4 | 1 3 4 Class Distribution -------------------- 100% | Mutant Dominant Class ---------------- Mutant | -10/Materials Mutant | -10/Mines Resources | -11 -10 -10 ----------- Run | Yrd Mat Min Matter Collected 248 | 132 . 116 Remotely . | . . . Salvage Created 8 | 8 . . Parts 5 | 5 . . Haulers Intercepted . | . . . Recyclers Shooed 1 | 1 . . Parts Field Recycled . | . . . Retrieved Matter . | . . . Parts Self-Destructed . | . . . Prevented . | . . . Parts Restored . | . . . Kills | -11 -10 -10 ------- Run | Yrd Mat Min Combat Hostiles Destroyed . | . . . Classes Destroyed 1 | 1 . . Tunneler 3 | 3 . . Best Kill Streak 1 | 1 . . Combat Bots Only . | . . . Max Kills in Single Turn 1 | 1 . . Gunslinging . | . . . Exploded . | . . . Melee . | . . . Uniques/NPCs Destroyed . | . . . Combat | -11 -10 -10 -------- Run | Yrd Mat Min Hostile Shots Fired 45 | . 16 29 Missed 9 | . 3 6 Hits 36 | . 13 23 Projectile 36 | . 13 23 Damage Taken 586 | . 181 405 Core 251 | . 102 149 Absorbed by Shields . | . . . Redirected to Shielding 102 | . . 102 Core Remaining (%) 100 | 100 . . Volleys Fired . | . . . Largest . | . . . Hottest . | . . . Shots Fired . | . . . Gun . | . . . Cannon . | . . . Launcher . | . . . Special . | . . . Kinetic . | . . . Thermal . | . . . Explosive . | . . . Electromagnetic . | . . . Robot Hit Streak . | . . . Robot Miss Streak . | . . . Penetration Max . | . . . Secondary Targets . | . . . Shots Hit Robots . | . . . Core Hits 2 | 1 . 1 Critical Kills . | . . . Critical Parts Destroyed . | . . . Critical Strikes . | . . . Melee Attacks . | . . . Impact . | . . . Slashing . | . . . Piercing . | . . . Sneak Attacks . | . . . Combat Hostiles . | . . . Follow-up Attacks . | . . . Damage Inflicted 88 | 15 . 73 Guns . | . . . Cannons . | . . . Explosions . | . . . Melee . | . . . Ramming 88 | 15 . 73 Kinetic . | . . . Thermal . | . . . Explosive . | . . . Electromagnetic . | . . . Impact . | . . . Slashing . | . . . Piercing . | . . . Highest Corruption 4 | . . 4 Average Corruption 3 | . . 3 Corruption Purged . | . . . Corruption Blocked . | . . . Effects 6 | . . 6 Message Errors 2 | . . 2 Matter Fused 1 | . . 1 Heat Flow Errors 2 | . . 2 Energy Discharges 1 | . . 1 Overload Shots . | . . . Overflow Damage . | . . . Projectiles . | . . . Explosions . | . . . Melee . | . . . Knockbacks . | . . . Impact . | . . . Kinetic . | . . . Secondary . | . . . Self-Inflicted Damage 64 | . . 64 Shots . | . . . Rammed 17 | 10 . 7 Targets Rammed 20 | 13 . 7 Kicked . | . . . Crushed 3 | 3 . . Highest Temperature 197 | . . 197 Average Temperature 118 | . . 118 Received Heat Transfer 201 | . 63 138 Siege Activations . | . . . Martial Activations . | . . . Shielding Activations . | . . . Robots Disrupted . | . . . Combat Hostiles . | . . . Robots Corrupted . | . . . Combat Hostiles . | . . . Parts Fried . | . . . Impact Corruptions . | . . . Robots Melted . | . . . Combat Hostiles . | . . . Parts Melted . | . . . Heat Transferred . | . . . Parts Sabotaged . | . . . Parts Stolen . | . . . Parts Stripped . | . . . Power Chain Reactions . | . . . Alert | -11 -10 -10 ------- Run | Yrd Mat Min Maximum Alert Level . | . . . Low Security (%) 100 | 100 100 100 Level 1 . | . . . Level 2 . | . . . Level 3 . | . . . Level 4 . | . . . Level 5 . | . . . High Security . | . . . Max Security . | . . . Peak Influence 30 | 5 30 . Initial . | . . . Average . | . 2 . Influence Increases 45 | 15 30 . Destroy 0b10 Robot/NC 15 | 15 . . Lose Combat Pursuer 30 | . 30 . Influence Decreases 45 | 15 30 . Time Decay 45 | 15 30 . Squads Dispatched 3 | . 2 1 Investigation 1 | . . 1 Extermination . | . . . Reinforcement 2 | . 2 . Assault . | . . . Garrison . | . . . Intercept . | . . . Searches Triggered . | . . . Construction Impeded . | . . . Haulers Reinforced . | . . . Active Scanning Responses . | . . . Cargo Convoy Interrupts . | . . . Stealth | -11 -10 -10 --------- Run | Yrd Mat Min Distress Signals 3 | . 3 . Communications Jammed . | . . . Distress Signals . | . . . Times Spotted 26 | . 16 10 Peak Tracking Total 10 | . 10 10 Tactical Retreats 1 | . 1 . Traps | -11 -10 -10 ------- Run | Yrd Mat Min Traps Triggered 1 | . 1 . Indirectly . | . . . Trap Hack Attempts . | . . . Triggered . | . . . Disarmed . | . . . Reprogrammed . | . . . Reused . | . . . Traps Extracted . | . . . Installed . | . . . Triggered . | . . . Machines | -11 -10 -10 ---------- Run | Yrd Mat Min Machines Disabled . | . . . Max in Single Turn . | . . . Machines Repaired . | . . . Machines Dismantled . | . . . Machines Sabotaged . | . . . Overloaded Fab Kills . | . . . Hacking | -11 -10 -10 --------- Run | Yrd Mat Min Machines Accessed 4 | . 3 1 Terminals 2 | . 2 . Fabricators . | . . . Repair Stations 1 | . 1 . Recycling Units . | . . . Scanalyzers . | . . . Garrison Access . | . . . Total Hacks 9 | . 8 1 Successful 1 | . . 1 Failed 8 | . 8 . Catastrophic 3 | . 3 . Database Lockouts . | . . . Manual 5 | . 5 . Terminals 6 | . 6 . Fabricators . | . . . Repair Stations 2 | . 2 . Recycling Units . | . . . Scanalyzers . | . . . Garrison Access . | . . . Terminal Hacks 1 | . . 1 Open Door 1 | . . 1 Fabricator Hacks . | . . . Repair Station Hacks . | . . . Recycling Unit Hacks . | . . . Scanalyzer . | . . . Garrison Access Hacks . | . . . Unauthorized Hacks . | . . . Terminals . | . . . Fabricators . | . . . Repair Stations . | . . . Recycling Units . | . . . Scanalyzers . | . . . Garrison Access . | . . . Data Cores Recovered . | . . . Used . | . . . Hacking Detections 3 | . 3 . Full Trace Events 1 | . 1 . Feedback Events . | . . . Feedback Blocked . | . . . Robot Schematics Acquired . | . . . Robots Built . | . . . Authchips . | . . . Time . | . . . Total Robot Build Rating . | . . . Part Schematics Acquired . | . . . Parts Built . | . . . Authchips . | . . . Time . | . . . Total Part Build Rating . | . . . Part Studies Acquired . | . . . Parts Repaired . | . . . Time . | . . . Parts Recycled . | . . . Recycled Matter . | . . . Retrieved Matter . | . . . Retrieved Components . | . . . Parts Scanalyzed . | . . . Part Schematics Acquired . | . . . Parts Damaged . | . . . Bothacking | -11 -10 -10 ------------ Run | Yrd Mat Min Used RIF Installer . | . . . Robots Hacked . | . . . Non-combat . | . . . Combat . | . . . Robot Hacks Applied . | . . . Relay Couplers Released . | . . . Fabnet Peak Effective % . | . . . Robots Rewired . | . . . Allies Hacked . | . . . Hacks Repelled . | . . . Allies | -11 -10 -10 -------- Run | Yrd Mat Min Total Allies . | . . . Largest Group . | . . . Highest-Rated Group . | . . . Highest-Rated Ally . | . . . Total Orders . | . . . Ally Attacks . | . . . Total Damage . | . . . Kills . | . . . Allies Corrupted . | . . . Allies Melted 1 | . . 1 Intel | -11 -10 -10 ------- Run | Yrd Mat Min Active Infowar (turns) 1135 | 6 327 802 Terrain 1 | . . 1 Traps 3 | . . 3 Seismic 1134 | 6 327 801 Robot Analysis Total . | . . . Derelict Logs Recovered 1 | . . 1 Drone Launches . | . . . Drone Recoveries . | . . . Exploration | -11 -10 -10 ------------- Run | Yrd Mat Min Turns Passed 1275 | 104 328 843 Spaces Moved 469 | 60 277 132 Core 342 | 18 197 127 Treads 127 | 42 80 5 Legs . | . . . Wheels . | . . . Hover . | . . . Flight . | . . . Fastest Speed 50 | 50 50 50 Average Speed 82 | 127 81 64 Slowest Speed 160 | 160 160 145 Overloaded Moves . | . . . Propulsion Burnouts . | . . . Robots Hopped . | . . . Potential Cave-ins . | . . . Cave-ins Triggered . | . . . Exploration Rate (%) 24 | 3 44 25 Regions Visited 2 Branch Regions 1 Pre-discovered Areas . | . . . Known Exits Taken . | . . . Unknown Exits Taken 2 | 1 1 . Scrap Searched 1 | . . 1 Spaces Dug . | . . . Terrain Destroyed . | . . . Melee . | . . . Projectile . | . . . AOE . | . . . Terrain Rammed 16 | . . 16 Walls Destroyed . | . . . Machines Disabled . | . . . Actions | -11 -10 -10 --------- Run | Yrd Mat Min Total 1342 | 78 379 885 Wait 812 | . 95 717 Move 468 | 60 276 132 Hop . | . . . Pick Up 6 | 1 . 5 Fast Attach 7 | 5 1 1 Attach 3 | . 2 1 Detach 4 | . 4 . Swap 4 | . . 4 Drop 3 | . 1 2 Fire . | . . . Melee . | . . . Ram 16 | . . 16 Kick . | . . . Crush 19 | 12 . 7 Escape Stasis . | . . . Rewire . | . . . Trap . | . . . Miscellaneous . | . . . Route ------- -11/Scrapyard -10/Materials -10/Mines History --------- Turn | Location | Event 16 | -11/Scrapyard | Discovered new exit (range 15) 105 | -11/Scrapyard | Entered Materials 303 | -10/Materials | Build established: Mutant 345 | -10/Materials | Discovered new exit (range 16) 433 | -10/Materials | Entered Mines 434 | -10/Mines | Met a Derelict bent on vengeance 481 | -10/Mines | Learned Materials security intel 486 | -10/Mines | Met a Derelict shopkeep closing up shop 525 | -10/Mines | Excavation squad dispatched 525 | -10/Mines | A large section of the Mines collapsed 775 | -10/Mines | Excavation squad dispatched 1025 | -10/Mines | Excavation squad dispatched 1034 | -10/Mines | Core integrity fell below 50% 1047 | -10/Mines | Core integrity fell below 20% 1275 | -10/Mines | Released all parts (3) 1276 | -10/Mines | Destroyed by G-34 Mercenary with Small Laser Last Messages --------------- 01043_ Destabilizing: Core damaged (-10). 01044_ Slammed into Earth. 01044_ Destabilizing: Core damaged (-10). 01045_ Slammed into Earth. 01046_ Destabilizing: Core damaged (-10). 01051_ Dropped Broken Imp. Terrain Scanner. 01057_ P2J4QNRFWXAXKH458T1ICAYCBI 01090_ System corrupted: Heat flow error (+183). 01156_ O ZQ&T FX%CDGRD#ATIQJ, 01171_ System corrupted: Energy discharge (-22). 01227_ System corrupted: Matter fused (-6). 01248_ T-07 Excavator is excavating. 01258_ Slammed into G-34 Mercenary. 01269_ System corrupted: Heat flow error (+222). 01275_ Imp. Propulsion Shielding destroyed. 01275_ U-05 Engineer lays Concrete. 01275_ Released Adv. Treads. 01275_ Released Broken Lgt. Treads. 01275_ Released Sml. Storage Unit. 01275_ Dropped Broken Lgt. Treads. Map ----- +----------------------------------------------------+ | ?????????????????# #??????????? | | ?????????????????# #??????????? | | ?????????###?????# #??????????? | | ????????## #?????# #??????????? | | ???????## ##????# #??????????? | | ???????# ##???# ###????????? | | ???????# ##### ##???????? | | ???????# ##??????? | | ???????## #??????? | | ????????## #??????? | | ????????## #??????? | | ????????# #?????? | | ????????# #????? | | ????????# #???? | | ????????# ??? | | ????????# ### ?? | | ????????# #?## ### ?? | | ????????# #??## #????? | | ????????# #???# ##????? | | ??????### t#### ######?????? | | ??????# g ##??????????? | | ??????# g ##### ##???????????? | | ??????# g###????##?????????????? | | ?????## g#?????????????????????? | | ????## =g#?????????????????????? | | ????#!!@g##????????????????????? | | ????# tt ##???????????????????? | | ????# ##??????????????????? | | ?##### t #??????????????????? | | ##""## t ####???????????????? | | #" # ggg #???????????????? | | #" ##u#???????????????? | | #" t g ## #?????? #???????? | | #" #X ## ### #???????? | | ##""## t ### !# #???????? | | ?#### ##?#### #???????? | | ????## ##??????? #???????? | | ?????#####????????? ##???????? | | ?????????????????????##????????? | | ???????????????????????????????? | | ???????????????????????????????? | | | | | | | | | | | | | | | | | | | +----------------------------------------------------+ Best States ------------- Heat Dissipation 25 Energy Generation 10 Energy Capacity 125 Matter Stores 300 Matter Capacity 300 Sight Range 16 Terrain Scan Density 10 Propulsion Shielding 66 Evasion (%) 50 Recoil Reduction 2 Item Schematics ----------------- None Robot Schematics ------------------ None Fabricated ------------ Nothing Repaired ---------- Nothing Studied --------- None Alien Tech Used ----------------- None Achievements -------------- None Challenges ------------ None Game ------ Seed InsulationMiningCape Manual? 0 Play Time 00:08:06 Cumulative 93.5 hours Start 2026.08.23 @ 12:37:45 End 2026.08.23 @ 12:45:47 Sessions 1 Manual Loads 0 Difficulty Rogue Special Mode None Game No. 60 Rogue 60 Adventurer 0 Explorer 0 Win Type - Total 0 Types 0/0/0/0/0/0/0/0/0/0 Lore% 34 Gallery% 40 Achievement% 31 Wizard Run 0 Options --------- Layout 0 ASCII 0 Keyboard 1 Movement Vi Keybinds 0 Fullscreen 2 Font 18/SmallcapsGlow Map View 76x50 Zoom Use 0% Tactical HUD 1 Map Filters NONE Filters NONE Steam 1 RUN: 8a84eb9b-69a4-48fa-bfee-57f8482304cf